bitfinex-derivatives/quotes_BTCF0:USTF0_20250508
["timestamp","ask_amount","ask_price","bid_price","bid_amount"]
[1746713747444,0.002,99303.0,99302.0,1.05927441]
[1746713747843,0.002,99303.0,99302.0,1.12927441]
[1746713748244,0.003,99303.0,99302.0,1.12927441]
[1746713749338,0.004,99303.0,99302.0,1.12927441]
[1746713752747,0.004,99303.0,99302.0,1.05927441]
[1746713753748,0.004,99303.0,99302.0,1.10927441]
[1746713756049,0.004,99303.0,99302.0,1.19815441]
[1746713757046,0.054,99303.0,99302.0,0.49815441]
[1746713757660,0.004,99303.0,99302.0,0.49815441]
[1746713757856,0.004,99303.0,99302.0,0.54815441]
[1746713759554,0.004,99303.0,99302.0,0.49815441]
[1746713759755,0.1401,99303.0,99302.0,0.49815441]
[1746713759951,0.0701,99303.0,99302.0,0.49815441]
[1746713760354,0.0701,99303.0,99302.0,0.40927441]
[1746713760550,0.4314735,99303.0,99302.0,0.168]
[1746713760745,0.4214735,99303.0,99302.0,0.168]
[1746713760950,0.4214735,99303.0,99302.0,0.3693755]
[1746713761148,0.4214735,99303.0,99302.0,0.2013755]
[1746713763756,0.2714735,99303.0,99302.0,0.2013755]
[1746713764544,0.0701,99303.0,99296.0,0.3608]
[1746713764859,0.2014089,99289.0,99288.0,0.2014002]
[1746713765180,0.2814089,99289.0,99288.0,0.2014002]
[1746713765653,0.2014121,99286.0,99285.0,0.2517561]
[1746713766044,0.2014121,99286.0,99285.0,0.2014039]
[1746713766243,0.2014222,99279.0,99270.0,1.06548]
[1746713766449,0.7502222,99279.0,99270.0,0.08884]
[1746713766651,0.8509502,99279.0,99272.0,0.05803959]
[1746713767046,1.0189502,99279.0,99275.0,0.0503575]
[1746713767247,1.0785502,99279.0,99276.0,0.050357]
[1746713767451,1.0785502,99279.0,99276.0,0.2014273]
[1746713767652,1.0785502,99279.0,99275.0,0.0503572]
[1746713767955,1.0785502,99279.0,99278.0,0.00551073]
[1746713768460,1.0785502,99279.0,99278.0,0.20693493]
[1746713768855,1.0795502,99279.0,99278.0,0.21093493]
[1746713769158,0.9788222,99279.0,99278.0,0.21093493]
[1746713770057,0.2346,99279.0,99278.0,0.21093493]
[1746713770254,0.0341,99279.0,99278.0,0.37893493]
[1746713770652,0.0341,99279.0,99278.0,0.44343493]
[1746713770851,0.001,99279.0,99278.0,0.44343493]
[1746713771251,0.2024222,99279.0,99278.0,0.37893493]
[1746713771452,0.001,99279.0,99278.0,0.37893493]
[1746713771846,0.0643,99279.0,99278.0,0.37893493]
[1746713772054,0.2657222,99279.0,99278.0,0.37893493]
[1746713772260,0.2657222,99279.0,99278.0,0.21093493]
[1746713772653,0.2757222,99279.0,99278.0,0.21093493]
[1746713773160,0.2657222,99279.0,99278.0,0.21093493]
[1746713773558,0.6265222,99279.0,99278.0,0.21093493]
[1746713774056,0.4251,99279.0,99278.0,0.21093493]
[1746713774566,0.2657222,99279.0,99278.0,0.21093493]
[1746713775248,0.0643,99279.0,99278.0,0.21093493]
[1746713776462,0.2657222,99279.0,99278.0,0.21093493]
[1746713776655,0.0843,99279.0,99278.0,0.21093493]
[1746713777063,0.2857222,99279.0,99278.0,0.21093493]
[1746713777554,0.2857222,99279.0,99278.0,0.21103493]
[1746713778056,0.2657222,99279.0,99278.0,0.21103493]
[1746713778865,0.0321,99279.0,99278.0,0.21103493]
[1746713779063,0.001,99279.0,99278.0,0.21103493]
[1746713779366,0.001,99279.0,99278.0,0.37903493]
[1746713780178,0.001,99279.0,99278.0,0.39903493]
[1746713780357,0.001,99279.0,99278.0,0.48787493]
[1746713780757,0.001,99279.0,99278.0,0.46787493]
[1746713781260,0.001,99279.0,99278.0,0.29987493]
[1746713781964,0.2024222,99279.0,99278.0,0.09845073]
[1746713782165,0.3624222,99279.0,99278.0,0.09845073]
[1746713782362,0.2024222,99279.0,99278.0,0.00961073]
[1746713782554,0.3424222,99279.0,99278.0,0.00961073]
[1746713782758,0.3742222,99279.0,99278.0,0.00961073]
[1746713783159,0.5422222,99279.0,99278.0,0.00961073]
[1746713784367,0.1728,99279.0,99278.0,0.21103493]
[1746713784563,0.0328,99279.0,99278.0,0.21103493]
[1746713784764,0.001,99279.0,99278.0,0.29103493]
[1746713785166,0.001,99279.0,99278.0,0.45903493]
[1746713786359,0.002,99303.0,99278.0,0.27761073]
[1746713786554,0.002,99303.0,99302.0,0.2013755]
[1746713786767,0.002,99303.0,99302.0,0.4102155]
[1746713787157,0.002,99303.0,99302.0,0.5882155]
[1746713787763,0.0346,99313.0,99312.0,0.2013553]
[1746713788163,0.0346,99313.0,99312.0,0.3693553]
[1746713788562,0.0346,99313.0,99312.0,0.4428553]
[1746713788764,0.2359532,99313.0,99312.0,0.4428553]
[1746713789163,0.2359532,99313.0,99312.0,0.2748553]
[1746713789362,0.2399532,99313.0,99312.0,0.2758553]
[1746713789563,0.2399532,99313.0,99312.0,0.2387553]
[1746713789765,0.3039532,99313.0,99312.0,0.002]
[1746713791164,0.4719532,99313.0,99312.0,0.002]
[1746713792567,0.4719532,99313.0,99312.0,0.2033553]
[1746713792767,0.2706,99313.0,99312.0,0.2033553]
[1746713792972,0.4719532,99313.0,99312.0,0.2033553]
[1746713793173,0.3039532,99313.0,99312.0,0.2033553]
[1746713793373,0.008,99313.0,99312.0,0.3636553]
[1746713793773,0.0503275,99335.0,99312.0,0.5731]
[1746713794068,0.0359,99323.0,99321.0,0.201337]
[1746713794270,0.3962,99328.0,99321.0,0.201337]
[1746713794469,0.20284123,99325.0,99321.0,0.201337]
[1746713794772,0.00151113,99325.0,99321.0,0.272837]
[1746713794976,0.00651,99322.0,99321.0,0.272837]
[1746713795186,0.00651,99322.0,99321.0,0.440837]
[1746713795569,0.00651,99322.0,99321.0,0.801637]
[1746713796173,0.3608,99343.0,99332.0,0.2013147]
[1746713796375,0.3608,99343.0,99332.0,0.7509147]
[1746713796567,0.3608,99343.0,99332.0,0.7309147]
[1746713797080,0.3608,99343.0,99332.0,0.9677147]
[1746713797275,0.2012979,99341.0,99332.0,0.9677147]
[1746713797678,0.0346,99347.0,99332.0,0.9687147]
[1746713797981,0.001,99349.0,99332.0,0.9687147]
[1746713798482,0.2012977,99341.0,99332.0,0.9687147]
[1746713798675,0.0503258,99338.0,99332.0,0.9687147]
[1746713798877,0.3608,99345.0,99332.0,0.7999147]
[1746713799076,0.2233127,99333.0,99332.0,0.8887147]
[1746713799382,0.3913127,99333.0,99332.0,0.7207147]
[1746713799682,0.3913127,99333.0,99332.0,0.72836101]
[1746713800182,0.2233127,99333.0,99332.0,0.65956101]
[1746713801179,0.2033127,99333.0,99332.0,0.45824631]
[1746713801483,0.2333127,99333.0,99332.0,0.0898]
[1746713801876,0.2033127,99333.0,99332.0,0.0898]
[1746713802077,0.5833127,99333.0,99332.0,0.0898]
[1746713802276,0.7513127,99333.0,99332.0,0.0898]
[1746713802689,1.2513127,99333.0,99332.0,0.0898]
[1746713803586,0.2013411,99320.0,99319.0,0.2013312]
[1746713803786,0.3013411,99320.0,99319.0,0.2013312]
[1746713803977,0.3356411,99320.0,99319.0,0.2013312]
[1746713804176,0.5036411,99320.0,99319.0,0.2013312]
[1746713804781,0.268,99320.0,99319.0,0.3637312]
[1746713805085,0.1,99320.0,99319.0,0.3637312]
[1746713805387,0.301339,99320.0,99319.0,0.3637312]
[1746713806083,0.2033138,99333.0,99319.0,0.5232]
[1746713806277,0.2533138,99333.0,99332.0,0.2013147]
[1746713807081,0.7533138,99333.0,99332.0,0.2013147]
[1746713807285,0.552,99333.0,99332.0,0.2013147]
[1746713807676,0.7553127,99333.0,99332.0,0.2013147]
[1746713808080,0.2013188,99331.0,99330.0,0.2013169]
[1746713808280,0.2013188,99331.0,99319.0,0.4999348]
[1746713808281,0.0503302,99329.0,99322.0,0.0503337]
[1746713808487,0.201333,99323.0,99322.0,0.3019923]
[1746713809186,0.201333,99323.0,99322.0,0.3732923]
[1746713809391,0.0365,99324.0,99323.0,0.201333]
[1746713809682,0.002,99333.0,99332.0,0.2013147]
[1746713810274,0.002,99333.0,99332.0,0.4406147]
[1746713811979,0.0363,99333.0,99332.0,0.4406147]
[1746713812779,0.0383,99333.0,99332.0,0.4406147]
[1746713814086,0.004,99333.0,99332.0,0.4406147]
[1746713816385,0.0365,99344.0,99340.0,0.0503241]
[1746713816689,0.2377904,99344.0,99343.0,0.2012924]
[1746713817089,0.0365,99344.0,99343.0,0.2012924]
[1746713817694,0.0385,99344.0,99343.0,0.2012924]
[1746713819285,0.0885,99344.0,99343.0,0.2012924]
[1746713819491,0.2927904,99344.0,99343.0,0.2012924]
[1746713819988,0.2927904,99344.0,99343.0,0.2708924]
[1746713820187,0.0915,99344.0,99343.0,0.4388924]
[1746713820685,0.005,99344.0,99343.0,0.4688924]
[1746713821292,0.001,99349.0,99348.0,0.2012823]
[1746713821590,0.001,99349.0,99348.0,0.2312823]
[1746713821886,0.001,99349.0,99348.0,0.2012823]
[1746713822081,0.001,99349.0,99347.0,0.036]
[1746713822082,0.2866767,99359.0,99358.0,0.201262]
[1746713822277,0.2012661,99357.0,99356.0,0.2012658]
[1746713822792,0.0351,99359.0,99358.0,0.201262]
[1746713823094,0.10157734,99361.0,99360.0,0.201258]
[1746713823282,0.10157734,99361.0,99360.0,0.289898]
[1746713823683,0.10157734,99361.0,99360.0,0.324698]
[1746713823886,0.10157734,99361.0,99360.0,0.465342]
[1746713824086,0.10157734,99361.0,99360.0,0.475342]
[1746713824283,0.10757734,99361.0,99360.0,0.643342]
[1746713824491,0.00251,99368.0,99364.0,0.0503124]
[1746713824684,0.00251,99368.0,99367.0,0.5620438]
[1746713824992,0.00251,99368.0,99367.0,0.5920438]
[1746713825207,0.00251,99368.0,99367.0,0.7300438]
[1746713825597,0.04251,99368.0,99367.0,1.3800438]
[1746713826002,0.00251,99368.0,99367.0,0.7300438]
[1746713826296,0.00251,99368.0,99367.0,0.7800438]
[1746713826792,0.037,99370.0,99369.0,0.2012398]
[1746713826995,0.0351,99379.0,99373.0,0.2012317]
[1746713827792,0.0351,99379.0,99373.0,0.2733317]
[1746713828198,0.003,99374.0,99373.0,0.4413317]
[1746713829293,0.003,99374.0,99373.0,0.44884464]
[1746713832192,0.2042296,99374.0,99373.0,0.17551294]
[1746713832390,0.3842296,99374.0,99373.0,0.17551294]
[1746713832593,0.183,99374.0,99373.0,0.37674464]
[1746713832887,0.003,99374.0,99373.0,0.42674464]
[1746713833290,0.003,99374.0,99373.0,0.25874464]
[1746713833486,0.003,99374.0,99373.0,0.36354464]
[1746713834200,0.003,99374.0,99373.0,0.53154464]
[1746713834388,0.001,99374.0,99373.0,0.53154464]
[1746713835404,0.011,99374.0,99373.0,0.48154464]
[1746713835601,0.0795,99374.0,99373.0,0.26415294]
[1746713835800,0.2807296,99374.0,99373.0,0.46538464]
[1746713836102,0.2707296,99374.0,99373.0,0.46538464]
[1746713836297,0.2707296,99374.0,99373.0,0.29738464]
[1746713836508,0.74136161,99374.0,99373.0,0.08864]
[1746713836805,0.80136161,99374.0,99373.0,0.08864]
[1746713837103,0.4507296,99374.0,99373.0,0.2898717]
[1746713837291,0.6187296,99374.0,99373.0,0.2898717]
[1746713837497,0.6187296,99374.0,99373.0,0.2972578]
[1746713837697,0.4175,99374.0,99373.0,0.2972578]
[1746713837905,0.3075,99374.0,99373.0,0.2972578]
[1746713838103,0.1395,99374.0,99373.0,0.2972578]
[1746713838301,0.3407296,99374.0,99373.0,0.08864]
[1746713838499,0.3407296,99374.0,99373.0,0.2898717]
[1746713838698,0.3407296,99374.0,99373.0,0.08864]
[1746713839100,0.3407296,99374.0,99373.0,0.2898717]
[1746713839300,0.3075,99374.0,99373.0,0.2898717]
[1746713839507,0.3075,99374.0,99373.0,0.29750338]
[1746713839807,0.2375,99374.0,99373.0,0.29750338]
[1746713840307,0.0695,99374.0,99373.0,0.29750338]
[1746713841415,0.3907296,99374.0,99373.0,0.08864]
[1746713841607,0.7015296,99374.0,99373.0,0.08864]
[1746713841999,1.2015296,99374.0,99373.0,0.08864]
[1746713842200,1.3695296,99374.0,99373.0,0.08864]
[1746713842697,1.3695296,99374.0,99365.0,0.2012465]
[1746713842698,0.2012719,99356.0,99355.0,0.00767547]
[1746713842899,0.2012762,99351.0,99350.0,0.08844]
[1746713843205,0.2712762,99351.0,99350.0,0.08844]
[1746713843411,0.2712762,99351.0,99350.0,0.2897183]
[1746713843907,0.1077,99355.0,99354.0,0.2012701]
[1746713844100,0.0729,99355.0,99354.0,0.2012701]
[1746713845105,0.2409,99355.0,99354.0,0.2012701]
[1746713845303,0.2409,99355.0,99354.0,0.2082701]
[1746713846714,0.2048,99355.0,99354.0,0.5690701]
[1746713847205,0.0368,99355.0,99354.0,0.5690701]
[1746713848614,0.0694,99364.0,99363.0,0.2012519]
[1746713848821,0.0894,99364.0,99363.0,0.2012519]
[1746713849214,0.2906499,99364.0,99363.0,0.2012519]
[1746713849505,0.2012668,99357.0,99356.0,0.2012653]
[1746713849709,0.2012681,99355.0,99354.0,0.5690687]
[1746713849908,0.0694,99356.0,99355.0,0.2012681]
[1746713851413,0.0694,99356.0,99355.0,0.2042681]
[1746713851616,0.0694,99356.0,99355.0,0.2082681]
[1746713853512,0.0794,99356.0,99355.0,0.2435681]
[1746713853713,0.0694,99356.0,99355.0,0.2435681]
[1746713854618,0.0357,99356.0,99355.0,0.2435681]
[1746713854826,0.0357,99356.0,99355.0,0.2794681]
[1746713857227,0.00251,99361.0,99360.0,0.201258]
[1746713857420,0.0346,99369.0,99368.0,0.2012418]
[1746713857725,0.0346,99369.0,99368.0,0.2896818]
[1746713858620,0.0346,99369.0,99368.0,0.2906818]
[1746713858922,0.0346,99369.0,99368.0,0.08944]
[1746713858923,0.2558398,99369.0,99368.0,0.08944]
[1746713859123,0.7846398,99369.0,99368.0,0.2906818]
[1746713859722,0.7846398,99369.0,99368.0,0.08944]
[1746713860528,0.7846398,99369.0,99368.0,0.2906818]
[1746713860724,0.7846398,99369.0,99368.0,0.2916818]
[1746713861125,0.5834,99369.0,99368.0,0.2916818]
[1746713861421,0.7846398,99369.0,99368.0,0.2916818]
[1746713862430,0.5834,99369.0,99368.0,0.2916818]
[1746713862735,0.4238398,99369.0,99368.0,0.2916818]
[1746713863325,0.00251,99373.0,99372.0,0.2012337]
[1746713863730,0.00251,99373.0,99372.0,0.2612337]
[1746713863930,0.00251,99373.0,99372.0,0.3334337]
[1746713864133,0.03671,99373.0,99372.0,0.2734337]
[1746713864927,0.03671,99373.0,99372.0,0.2744337]
[1746713866122,0.0342,99373.0,99372.0,0.2744337]
[1746713866630,0.001,99374.0,99373.0,0.2012317]
[1746713867123,0.001,99374.0,99373.0,0.4397317]
[1746713867517,0.00151018,99389.0,99384.0,0.2012094]
[1746713867723,0.00151018,99389.0,99384.0,0.6120094]
[1746713867923,0.12681614,99397.0,99392.0,0.2011932]
[1746713868228,0.18807937,99406.0,99405.0,0.2011669]
[1746713868229,0.15217937,99406.0,99405.0,0.2011669]
[1746713868417,0.15217937,99406.0,99405.0,0.6419669]
[1746713868622,0.15217937,99406.0,99405.0,0.6219669]
[1746713869225,0.15217937,99406.0,99405.0,0.8626669]
[1746713869722,0.15217937,99406.0,99405.0,1.5126669]
[1746713871234,0.15217937,99406.0,99405.0,1.5136669]
[1746713871624,0.00251,99410.0,99405.0,1.3125]
[1746713871825,0.0771457,99419.0,99418.0,0.2011406]
[1746713872025,0.0771457,99419.0,99418.0,0.2893806]
[1746713872633,0.002,99423.0,99422.0,0.2011325]
[1746713873030,0.052,99423.0,99422.0,0.2011325]
[1746713873222,0.002,99423.0,99422.0,0.4414325]
[1746713873630,0.002,99423.0,99422.0,0.4488762]
[1746713873831,0.0732,99423.0,99422.0,0.4488762]
[1746713874230,0.0732,99423.0,99422.0,0.2808762]
[1746713874530,0.0752,99423.0,99422.0,0.2808762]
[1746713874834,0.0397,99423.0,99422.0,0.2808762]
[1746713875132,0.0407,99423.0,99422.0,0.2808762]
[1746713875332,0.005,99423.0,99422.0,0.4488762]
[1746713875533,0.0362,99436.0,99428.0,0.0502797]
[1746713875830,0.0362,99436.0,99435.0,0.2011062]
[1746713876427,0.0862,99436.0,99435.0,0.2011062]
[1746713876626,0.0362,99436.0,99435.0,0.6360062]
[1746713876826,0.3608,99450.0,99436.0,0.0502758]
[1746713877133,0.0362,99440.0,99439.0,0.37742074]
[1746713877428,0.001,99449.0,99448.0,0.2010799]
[1746713877626,0.201,99449.0,99448.0,0.2010799]
[1746713877828,0.001,99449.0,99448.0,0.2748799]
[1746713878137,0.141,99449.0,99448.0,0.2748799]
[1746713878726,0.001,99449.0,99448.0,0.2748799]
[1746713878926,0.002,99449.0,99448.0,0.2748799]
[1746713879129,0.132,99449.0,99448.0,0.2748799]
[1746713879636,0.133,99449.0,99448.0,0.2748799]
[1746713879836,0.003,99449.0,99448.0,0.2748799]
[1746713881239,0.003,99449.0,99448.0,0.4428799]
[1746713882129,0.3608,99466.0,99448.0,0.2418]
[1746713882331,0.7108,99466.0,99465.0,0.2010455]
[1746713882537,0.7108,99466.0,99465.0,0.2892455]
[1746713882838,0.0502688,99451.0,99448.0,0.168]
[1746713883025,0.0502632,99462.0,99452.0,0.0882]
[1746713883233,0.571053,99462.0,99461.0,0.201052]
[1746713883434,0.37,99462.0,99461.0,0.201052]
[1746713883841,0.0353,99465.0,99464.0,0.2010476]
[1746713884332,0.1453,99465.0,99464.0,0.2010476]
[1746713884524,0.18,99465.0,99464.0,0.2010476]
[1746713884930,0.18,99465.0,99464.0,0.2375476]
[1746713885334,0.3850455,99465.0,99464.0,0.2010476]
[1746713885727,0.2710455,99465.0,99464.0,0.2010476]
[1746713886743,0.07,99465.0,99452.0,0.0882]
[1746713886940,0.3608,99457.0,99432.0,0.3608]
[1746713887139,0.3608,99449.0,99448.0,0.201078]
[1746713887340,0.201078,99451.0,99450.0,0.2010738]
[1746713887543,0.353378,99451.0,99450.0,0.2010738]
[1746713887738,0.0502731,99442.0,99431.0,0.0502785]
[1746713888042,0.0723,99441.0,99440.0,0.2010961]
[1746713888243,0.1023,99441.0,99440.0,0.2010961]
[1746713888544,0.0723,99441.0,99440.0,0.2369961]
[1746713889541,0.0723,99441.0,99440.0,0.2763961]
[1746713890445,0.0723,99441.0,99440.0,0.3665961]
[1746713890635,0.0358,99441.0,99440.0,0.3665961]
[1746713892343,0.0358,99441.0,99440.0,0.2409961]
[1746713892543,0.0358,99441.0,99440.0,0.3291961]
[1746713893449,0.0358,99441.0,99440.0,0.3623961]
[1746713893651,0.0358,99441.0,99440.0,0.3643961]
[1746713894650,0.0658,99441.0,99440.0,0.3291961]
[1746713894845,0.0358,99441.0,99440.0,0.3291961]
[1746713895447,0.0358,99441.0,99440.0,0.3643961]
[1746713895649,0.0358,99441.0,99440.0,0.2932961]
[1746713896552,0.0358,99441.0,99440.0,0.0922]
[1746713896853,0.42745811,99441.0,99440.0,0.0922]
[1746713897153,0.59545811,99441.0,99440.0,0.0922]
[1746713897740,0.43046401,99441.0,99440.0,0.0902]
[1746713898047,0.2399,99441.0,99440.0,0.2892961]
[1746713898254,0.0719,99441.0,99440.0,0.2892961]
[1746713898548,0.3129941,99441.0,99440.0,0.0882]
[1746713900949,0.6737941,99441.0,99440.0,0.2892961]
[1746713901154,0.8017941,99441.0,99440.0,0.2892961]
[1746713901856,0.6007,99441.0,99440.0,0.2892961]
[1746713902251,0.4327,99441.0,99440.0,0.2892961]
[1746713902455,0.0719,99441.0,99440.0,0.2892961]
[1746713902852,0.0358,99441.0,99440.0,0.3092961]
[1746713903557,0.0358,99441.0,99440.0,0.3102961]
[1746713904458,0.0358,99441.0,99440.0,0.3122961]
[1746713904856,0.0358,99441.0,99440.0,0.3132961]
[1746713905561,0.0358,99441.0,99440.0,0.2952961]
[1746713907351,0.1158,99441.0,99440.0,0.2952961]
[1746713907553,0.0658,99441.0,99440.0,0.2952961]
[1746713907758,0.0358,99441.0,99440.0,0.2952961]
[1746713910072,0.2868941,99441.0,99440.0,0.0942]
[1746713910466,0.3238941,99441.0,99440.0,0.0942]
[1746713911371,0.4918941,99441.0,99440.0,0.0942]
[1746713912170,0.4918941,99441.0,99440.0,0.0912]
[1746713912468,0.4918941,99441.0,99440.0,0.0942]
[1746713913072,0.4918941,99441.0,99440.0,0.2952961]
[1746713914179,0.4918941,99441.0,99440.0,0.2070961]
[1746713915978,0.4418941,99441.0,99440.0,0.2070961]
[1746713916875,0.4418941,99441.0,99440.0,0.006]
[1746713917082,0.54245811,99441.0,99440.0,0.006]
[1746713917282,0.64245811,99441.0,99440.0,0.006]
[1746713918572,0.5418941,99441.0,99440.0,0.2070961]
[1746713919081,0.5418941,99441.0,99440.0,0.006]
[1746713920479,0.5418941,99441.0,99440.0,0.2070961]
[1746713920673,0.5418941,99441.0,99440.0,0.006]
[1746713921183,0.3738941,99441.0,99440.0,0.006]
[1746713921386,0.1728,99441.0,99440.0,0.2070961]
[1746713921684,0.0502696,99449.0,99448.0,0.2010742]
[1746713921870,0.2010839,99449.0,99448.0,0.2513435]
[1746713922074,0.201072,99452.0,99451.0,0.2010718]
[1746713922273,0.2010779,99450.0,99449.0,0.2010761]
[1746713922473,0.2010799,99448.0,99447.0,0.2368802]
[1746713923073,0.0368,99448.0,99447.0,0.2722802]
[1746713923275,0.5,99450.0,99449.0,0.2010779]
[1746713923685,0.7010759,99450.0,99449.0,0.2010779]
[1746713924484,0.2010759,99450.0,99449.0,0.2010779]
[1746713924685,0.2677759,99450.0,99449.0,0.2010779]
[1746713925484,0.2677759,99450.0,99449.0,0.2020779]
[1746713926083,0.4357759,99450.0,99449.0,0.001]
[1746713926390,0.4357759,99450.0,99449.0,0.002]
[1746713926575,0.5363279,99450.0,99449.0,0.002]
[1746713926881,0.8263279,99450.0,99449.0,0.002]
[1746713927382,0.8607279,99450.0,99449.0,0.002]
[1746713927581,0.2011123,99432.0,99425.0,0.0502812]
[1746713927780,0.3011123,99432.0,99426.0,0.0682]
[1746713927981,0.3011123,99432.0,99431.0,0.2890743]
[1746713928181,0.4691123,99432.0,99431.0,0.2890743]
[1746713928786,0.4691123,99432.0,99431.0,0.2940743]
[1746713929089,0.5392123,99432.0,99431.0,0.2940743]
[1746713929690,0.5392123,99432.0,99431.0,0.2980743]
[1746713929885,0.5397843,99432.0,99431.0,0.09696]
[1746713930079,0.7797843,99432.0,99431.0,0.009]
[1746713930882,1.2797843,99432.0,99431.0,0.009]
[1746713931382,0.2011305,99423.0,99422.0,0.00201162]
[1746713931574,0.4311305,99423.0,99422.0,0.00201162]
[1746713931788,0.5317105,99423.0,99422.0,0.00201162]
[1746713932191,0.7700105,99423.0,99422.0,0.00201162]
[1746713932888,0.7700105,99423.0,99422.0,0.00601162]
[1746713933195,0.7710105,99423.0,99422.0,0.01201162]
[1746713933575,0.6704305,99423.0,99422.0,0.21314412]
[1746713933779,0.4348,99423.0,99422.0,0.21314412]
[1746713934082,0.4679305,99423.0,99422.0,0.21214412]
[1746713935080,0.2668,99423.0,99422.0,0.21214412]
[1746713935481,0.4679305,99423.0,99422.0,0.21214412]
[1746713935687,0.4669305,99423.0,99422.0,0.20714412]
[1746713936186,0.23,99423.0,99422.0,0.20714412]
[1746713936387,0.30357245,99426.0,99425.0,0.2011264]
[1746713936591,0.16244665,99426.0,99425.0,0.2011264]
[1746713936788,0.36357105,99426.0,99425.0,0.2011264]
[1746713937090,0.86357105,99426.0,99425.0,0.2011264]
[1746713937291,0.7611244,99426.0,99425.0,0.2735264]
[1746713937691,0.7611244,99426.0,99425.0,0.0724]
[1746713937993,0.7611244,99426.0,99425.0,0.2755264]
[1746713938200,1.1219244,99426.0,99425.0,0.2755264]
[1746713938495,1.1219244,99426.0,99425.0,0.0744]
[1746713938684,1.1219244,99426.0,99425.0,0.2775264]
[1746713938991,1.1219244,99426.0,99425.0,0.0764]
[1746713939292,1.1219244,99426.0,99425.0,0.0409]
[1746713939494,1.1219244,99426.0,99425.0,0.0389]
[1746713940195,1.1219244,99426.0,99425.0,0.2380264]
[1746713940893,1.1219244,99426.0,99425.0,0.0369]
[1746713941093,1.12212454,99426.0,99425.0,0.0369]
[1746713942094,0.2011305,99423.0,99422.0,0.00201162]
[1746713942294,0.4711305,99423.0,99422.0,0.00201162]
[1746713942900,0.5055305,99423.0,99422.0,0.20314412]
[1746713943099,0.5055305,99423.0,99422.0,0.00201162]
[1746713943399,0.5055305,99423.0,99422.0,0.00301162]
[1746713943789,0.5055305,99423.0,99422.0,0.00401162]
[1746713943985,0.5055305,99423.0,99422.0,0.24024412]
[1746713945295,0.36100014,99426.0,99425.0,0.2011264]
[1746713945499,0.41100014,99426.0,99425.0,0.2011264]
[1746713945698,0.61212454,99426.0,99425.0,0.2011264]
[1746713946201,0.56212454,99426.0,99425.0,0.2011264]
[1746713946694,0.2011284,99424.0,99423.0,0.0708]
[1746713946901,0.2511284,99424.0,99423.0,0.0708]
[1746713947291,0.2511284,99424.0,99423.0,0.2719305]
[1746713947592,0.3210284,99424.0,99423.0,0.0708]
[1746713947799,0.3210284,99424.0,99423.0,0.2011305]
[1746713948200,0.3210284,99424.0,99423.0,0.2021305]
[1746713948502,0.3210284,99424.0,99423.0,0.001]
[1746713948703,0.3210284,99424.0,99423.0,0.0381]
[1746713949200,0.3210284,99424.0,99423.0,0.2392305]
[1746713949897,0.3210284,99424.0,99423.0,0.0381]
[1746713951197,0.3210284,99424.0,99423.0,0.002]
[1746713951594,0.0502892,99410.0,99403.0,0.001006]
[1746713951796,0.2011669,99405.0,99404.0,0.15838]
[1746713952000,0.3211669,99405.0,99404.0,0.15838]
[1746713952191,0.3211669,99405.0,99404.0,0.3595489]
[1746713952703,0.12,99405.0,99404.0,0.0707]
[1746713952900,0.00020014,99426.0,99425.0,0.2011264]
[1746713953100,0.00020014,99426.0,99425.0,0.9476064]
[1746713953303,0.00020014,99426.0,99425.0,0.25568]
[1746713953495,0.10020014,99426.0,99425.0,0.3691264]
[1746713953797,0.10020014,99426.0,99425.0,0.4568064]
[1746713954205,0.10020014,99426.0,99425.0,0.2888064]
[1746713954595,0.00020014,99426.0,99425.0,0.2888064]
[1746713954993,0.29232454,99426.0,99425.0,0.08768]
[1746713955203,0.2011446,99416.0,99415.0,0.08768]
[1746713955499,0.5408,99416.0,99415.0,0.2888267]
[1746713955804,0.2011395,99419.0,99418.0,0.2011365]
[1746713956003,0.2011395,99419.0,99418.0,0.2731365]
[1746713956493,0.2511395,99419.0,99418.0,0.072]
[1746713956993,0.2011446,99416.0,99415.0,0.08768]
[1746713957197,0.3621446,99416.0,99415.0,0.08768]
[1746713957394,0.161,99416.0,99415.0,0.2888267]
[1746713957599,0.161,99416.0,99415.0,0.2908267]
[1746713957800,0.3621446,99416.0,99415.0,0.2031467]
[1746713957994,0.161,99416.0,99415.0,0.2031467]
[1746713958197,0.161,99416.0,99415.0,0.2011467]
[1746713958898,0.3621446,99416.0,99415.0,0.2011467]
[1746713959206,0.3979446,99416.0,99415.0,0.2011467]
[1746713959398,0.3979446,99416.0,99415.0,0.2361467]
[1746713960303,0.3979446,99416.0,99415.0,0.035]
[1746713960498,0.2011547,99411.0,99410.0,0.12156]
[1746713960698,0.3411547,99411.0,99410.0,0.15776]
[1746713960897,0.3411547,99411.0,99410.0,0.3589168]
[1746713961207,0.2011547,99411.0,99410.0,0.3689168]
[1746713961707,0.2011547,99411.0,99410.0,0.2835568]
[1746713961908,0.036,99412.0,99411.0,0.2011547]
[1746713962098,0.036,99412.0,99411.0,0.2715547]
[1746713963398,0.0713,99412.0,99411.0,0.2725547]
[1746713963600,0.0713,99412.0,99411.0,0.2735547]
[1746713963803,0.2724527,99412.0,99411.0,0.2735547]
[1746713964013,0.5734527,99412.0,99411.0,0.002]
[1746713964208,0.5734527,99412.0,99387.0,0.08736]
[1746713964209,0.2011689,99404.0,99387.0,0.08736]
[1746713964508,0.8529689,99404.0,99390.0,0.0358]
[1746713964698,0.9535689,99404.0,99390.0,0.0358]
[1746713964897,0.9535689,99404.0,99393.0,0.2011899]
[1746713965108,1.2253689,99404.0,99393.0,0.2011899]
[1746713965308,1.7253689,99404.0,99403.0,0.011717]
[1746713966610,1.7253689,99404.0,99403.0,0.013717]
[1746713968509,1.6247689,99404.0,99403.0,0.013717]
[1746713970201,1.4567689,99404.0,99403.0,0.013717]
[1746713970913,1.4567689,99404.0,99403.0,0.2148879]
[1746713971103,1.4567689,99404.0,99403.0,0.013717]
[1746713972205,0.9654,99404.0,99403.0,0.013717]
[1746713972409,1.1655689,99404.0,99403.0,0.2496879]
[1746713973213,1.1655689,99404.0,99403.0,0.048517]
[1746713973511,1.1655689,99404.0,99403.0,0.013717]
[1746713973702,1.2365689,99404.0,99403.0,0.013717]
[1746713974114,1.4045689,99404.0,99403.0,0.013717]
[1746713974311,1.4400689,99404.0,99403.0,0.013717]
[1746713975603,1.4400689,99404.0,99403.0,0.012717]
[1746713976307,1.3335689,99404.0,99403.0,0.2118879]